[Event "IIFL Wealth 4th Mumbai Open"]
[Site "Mumbai"]
[Date "2018.12.31"]
[Round "2"]
[White "Vinod, Chaturvedi"]
[Black "Makwana, Devam"]
[Result "0-1"]
[ECO "D02"]
[WhiteElo "1387"]
[BlackElo "1617"]
[Annotator "NA"]
[PlyCount "89"]
[EventDate "2018.12.30"]
[EventType "swiss"]
[EventCountry "IND"]
[SourceTitle "playchess.com"]
[Source "ChessBase"]
[SourceQuality "1"]
[TimeControl "40/5400+30:1800+30"]

1. d4 {[%emt 0:00:00]} d5 {[%emt 0:00:00]} 2. Nf3 {[%emt 0:00:00]} Nf6 {[%emt 0:00:00]} 3. g3 {[%emt 0:00:47]} e6 {[%emt 0:00:02]} 4. Bg2 {[%emt 0:00:28]} c5 {[%emt 0:00:19]} 5. c3 {[%emt 0:01:10]} Nc6 {[%emt 0:00:19]} 6. a3 {[%emt 0:00:32]} a5 {[%emt 0:01:14]} 7. b3 {[%emt 0:00:42]} Be7 {[%emt 0:01:23]} 8. Bb2 {[%emt 0:00:34]} b5 {[%emt 0:05:18]} 9. O-O {[%emt 0:02:54]} O-O {[%emt 0:02:45]} 10. Nbd2 {[%emt 0:00:50]} Qc7 {[%emt 0:05:35]} 11. Re1 {[%emt 0:04:42]} Ne4 {[%emt 0:01:58]} 12. dxc5 {[%emt 0:01:35]} Bxc5 {[%emt 0:04:23]} 13. Nd4 {[%emt 0:07:11]} Nxc3 {[%emt 0:05:11]} 14. Bxc3 {[%emt 0:03:44]} Nxd4 {[%emt 0:00:20]} 15. b4 {[%emt 0:01:07]} axb4 {[%emt 0:04:01]} 16. axb4 {[%emt 0:01:38]} Rxa1 {[%emt 0:00:32]} 17. Bxa1 {[%emt 0:00:17]} Bb6 {[%emt 0:01:28]} 18. Qb1 {[%emt 0:01:49]} Qa7 {[%emt 0:00:29]} 19. e3 {[%emt 0:04:29]} Nf5 {[%emt 0:00:58]} 20. Nb3 {[%emt 0:01:30]} Bb7 {[%emt 0:01:21]} 21. Qb2 {[%emt 0:05:38]} f6 {[%emt 0:02:15]} 22. Bh3 {[%emt 0:03:45]} g6 {[%emt 0:14:52]} 23. g4 {[%emt 0:08:39]} Nh4 {[%emt 0:04:20]} 24. Nd2 {[%emt 0:12:00]} g5 {[%emt 0:01:38]} 25. Qb3 {[%emt 0:04:22]} Kg7 {[%emt 0:07:04]} 26. Rc1 {[%emt 0:07:43]} e5 {[%emt 0:04:47]} 27. Bf1 {[%emt 0:00:11]} d4 {[%emt 0:02:49]} 28. exd4 {[%emt 0:05:56]} exd4 {[%emt 0:00:08]} 29. Qd3 {[%emt 0:02:27]} Ng6 {[%emt 0:02:26]} 30. Nb3 {[%emt 0:02:22]} Ne5 {[%emt 0:00:18]} 31. Qg3 {[%emt 0:01:50]} Nf3+ {[%emt 0:03:13]} 32. Kh1 {[%emt 0:02:06]} Qa2 {[%emt 0:00:31]} 33. Nc5 {[%emt 0:01:43]} Bxc5 {[%emt 0:01:40]} 34. bxc5 {[%emt 0:00:27]} Qa3 {[%emt 0:02:54]} 35. Rd1 {[%emt 0:00:56]} Qxc5 {[%emt 0:01:27]} 36. Bg2 {[%emt 0:00:27]} Qc2 {[%emt 0:01:04]} 37. Bxf3 {[%emt 0:01:10]} Qxd1+ {[%emt 0:00:08]} 38. Kg2 {[%emt 0:00:27]} Bxf3+ {[%emt 0:00:09]} 39. Qxf3 {[%emt 0:00:19]} Qxf3+ {[%emt 0:00:09]} 40. Kxf3 {[%emt 0:00:00]} Re8 {[%emt 0:00:00]} 41. Bxd4 {[%emt 0:00:11]} b4 {[%emt 0:00:14]} 42. h3 {[%emt 0:01:49]} b3 {[%emt 0:00:02]} 43. Bb2 {[%emt 0:00:18]} Rc8 {[%emt 0:00:18]} 44. Ke2 Ra8 45. Ke1 0-1